Cogmind - Beta 12 @@@ ROGUE MODE // 2024.01.25 @ 01:25:03 Player: %41THX3142 Result: Destroyed by exploding Fusion Modulator Performance ------------- Evolutions (3) 1500 Regions Visited (5) 1000 Robots Destroyed (148) 740 Value Destroyed (3750) 3750 Prototype IDs (3) 60 Alien Tech Used (0) 0 Bonus (-305) -305 TOTAL SCORE: 6745 Bonus ------- High Alert Combat Kills 235 Friendly Fire -540 Cogmind --------- Core Integrity 0/700 Matter 295/300 Energy 100/100 System Corruption 3% Temperature Cool (12) Movement Core (50) Location -7/Factory Parts ------- > --- POWER (1) -------- (None) > --- PROPULSION (3) --- (None) > --- UTILITY (7) ------ (None) > --- WEAPON (2) ------- (None) > --- INVENTORY (5) ---- Improved Deuterium Engine Advanced Weight Redist. System Assault Rifle Peak State ------------ > --- POWER ------------ Fission Core > --- PROPULSION ------- Carbon-fiber Leg Myomer Leg Myomer Leg > --- UTILITY ---------- Advanced Cooling System Medium Storage Unit Advanced Visual Processing Unit Sensor Array Improved Signal Interpreter Targeting Computer Layered Medium Armor Plating > --- WEAPON ----------- Lightning Gun Arc Projector > --- INVENTORY -------- Improved Deuterium Engine Advanced Weight Redist. System Salvage Targeting Computer System Restoration Module Shock Rifle High-powered Field Laser Gauss Rifle Heavy Missile Launcher Mining Laser Power Maul [Rating: 53] Favorites ----------- Power Light Nuclear Core Engine Ion Engine Power Core Light Nuclear Core Propulsion Aluminum Leg Treads Light Treads Leg Aluminum Leg Wheel Armored Wheel Hover Unit Gravmag System Utility Medium Storage Unit Device Sensor Array Storage Medium Storage Unit Processor Targeting Computer Protection Improved Light Armor Plating Weapon Beamcaster Energy Gun Beamcaster Energy Cannon Improved EM Pulse Cannon Ballistic Gun Gauss Rifle Ballistic Cannon Improved Light Cannon Launcher Rocket Launcher Special Weapon Mining Laser Impact Weapon Heavy Hammer Build | -11 -10 -10 -9 -8 -7 ------- Run | Jun Mat Min Mat Mat Fac Slots Evolved 6 | . . . 2 2 2 Power . | . . . . . . Propulsion 1 | . . . . . 1 Utility 5 | . . . 2 2 1 Weapon . | . . . . . . Parts Attached 155 | 6 15 3 28 53 50 Power 14 | 1 1 1 1 4 6 Engine 7 | 1 1 1 . 2 2 Core 7 | . . . 1 2 4 Reactor . | . . . . . . Propulsion 34 | 2 3 . 5 6 18 Treads 2 | . . . . . 2 Leg 24 | 2 3 . 5 6 8 Wheel 7 | . . . . . 7 Hover 1 | . . . . . 1 Flight . | . . . . . . Utility 43 | 1 3 . 7 19 13 Device 17 | . 2 . 3 6 6 Storage 5 | 1 1 . . 3 . Processor 6 | . . . . 5 1 Hackware . | . . . . . . Protection 15 | . . . 4 5 6 Artifact . | . . . . . . Weapon 64 | 2 8 2 15 24 13 Energy Gun 29 | 2 5 1 8 6 7 Energy Cannon 1 | . . . . 1 . Ballistic Gun 6 | . . . . 5 1 Ballistic Cannon 4 | . . . 2 2 . Launcher 16 | . 3 1 5 6 1 Special Weapon 1 | . . . . . 1 Impact Weapon 7 | . . . . 4 3 Slashing Weapon . | . . . . . . Piercing Weapon . | . . . . . . Special Melee Weapon . | . . . . . . Unidentified Prototypes . | . . . . . . Corrupted Parts 1 | . . . . . 1 System Corruption 1 | . . . . . 1 Parts Lost 31 | . . . 1 9 21 Power 3 | . . . . 2 1 Propulsion 10 | . . . . 1 9 Utility 8 | . . . . 4 4 Weapon 10 | . . . 1 2 7 Highest Loss Streak 6 | . . . 1 3 6 To Critical Strikes . | . . . . . . Average Slot Usage (%) 96 | . 99 100 99 99 86 Engine 6 | . 14 14 1 3 5 Core 3 | . . . 9 5 1 Leg 19 | . 28 28 22 17 7 Wheel 1 | . . . . . 5 Device 15 | . 13 14 21 14 13 Storage 10 | . 14 14 11 9 6 Processor 9 | . . . . 18 20 Protection 6 | . . . 11 11 6 Energy Gun 12 | . 24 24 9 7 5 Ballistic Gun 1 | . . . . 2 4 Ballistic Cannon 2 | . . . 9 2 . Launcher 1 | . 2 3 3 . . Impact Weapon 1 | . . . . 4 2 Naked Turns 105 | . . . . . 105 Heaviest Build 42 | 13 22 25 32 40 42 Greatest Support 74 | 20 20 20 40 40 74 Greatest Overweight (x) 2 | 1 1 1 1 2 1 Average Overweight (x) . | . . 1 . . . Largest Inventory Capacity 15 | 8 10 10 10 15 10 Average Capacity 9 | 6 9 10 10 10 9 Most Carried 11 | 2 10 10 10 11 10 Average Carried 9 | 1 8 9 9 9 9 Final Capacity 10 | 8 10 10 10 10 5 Final Carried 10 | 2 10 10 10 10 3 Class Distribution -------------------- 62% | Scavenger-Mutant 11% | Scavenger-Assassin 10% | Scavenger-Skirmisher 7% | Mutant 4% | Assassin 3% | Skirmisher Dominant Class ---------------- Scavenger-Mutant | -10/Materials Scavenger-Mutant | -10/Mines Scavenger-Mutant | -9/Materials Scavenger-Mutant | -8/Materials Scavenger-Skirmisher | -7/Factory Resources | -11 -10 -10 -9 -8 -7 ----------- Run | Jun Mat Min Mat Mat Fac Matter Collected 2901 | 171 319 167 359 1188 697 Remotely . | . . . . . . Salvage Created 5264 | . 704 171 906 1954 1529 Parts 258 | . 42 6 66 79 65 Haulers Intercepted 8 | . 1 . 2 4 1 Recyclers Shooed 6 | . 2 . . 2 2 Parts Field Recycled . | . . . . . . Retrieved Matter . | . . . . . . Parts Self-Destructed . | . . . . . . Prevented . | . . . . . . Kills | -11 -10 -10 -9 -8 -7 ------- Run | Jun Mat Min Mat Mat Fac Combat Hostiles Destroyed 83 | . 13 . 21 34 15 Melee 8 | . . . . 6 2 Guns 26 | . 9 . 6 6 5 Cannons 12 | . . . 7 5 . AOE 26 | . 3 . 8 10 5 Classes Destroyed 14 | . 7 . 2 1 4 Worker 8 | . 1 . 2 4 1 Builder 10 | . . . 1 6 3 Tunneler 3 | . . . . 1 2 Hauler 8 | . 1 . 2 4 1 Recycler 19 | . 3 1 3 4 8 Mechanic 3 | . . . . . 3 Operator 3 | . 1 . . 2 . Watcher 10 | . 3 . 1 4 2 Swarmer 19 | . 3 . 10 6 . Grunt 44 | . 10 . 3 22 9 Sentry 15 | . . . 8 6 1 Specialist 1 | . . . . . 1 Hunter 1 | . . . . . 1 Programmer 3 | . . . . . 3 Thug 2 | . . 2 . . . Best Kill Streak 10 | . 4 1 5 8 10 Combat Bots Only 7 | . 3 . 4 7 5 Max Kills in Single Turn 4 | . 3 1 4 3 3 Gunslinging . | . . . . . . Exploded 3 | . 2 . 3 2 2 Melee 1 | . . . . 1 1 Uniques/NPCs Destroyed . | . . . . . . Combat | -11 -10 -10 -9 -8 -7 -------- Run | Jun Mat Min Mat Mat Fac Damage Taken 6031 | . 570 . 438 2324 2699 Core 1419 | . 174 . 96 441 708 Absorbed by Shields . | . . . . . . Redirected to Shielding 51 | . . . . 51 . Regen/Repaired (Parts) 273 | . . . . 221 52 Core Remaining (%) 56 | 100 . 30 76 19 . Volleys Fired 318 | . 73 22 52 106 65 Largest 2 | . 2 2 2 2 2 Hottest 120 | . 115 115 114 120 110 Shots Fired 490 | . 104 36 83 156 111 Gun 375 | . 96 34 45 99 101 Cannon 76 | . . . 33 43 . Launcher 37 | . 8 2 5 14 8 Special 2 | . . . . . 2 Kinetic 133 | . . . 33 76 24 Thermal 246 | . 96 34 45 63 8 Explosive 37 | . 8 2 5 14 8 Electromagnetic 74 | . . . . 3 71 Robot Hit Streak 10 | . 10 5 7 10 10 Robot Miss Streak 5 | . 4 5 5 5 3 Penetration Max 1 | . . . . 1 . Secondary Targets 1 | . . . . . 1 Max Gunslinging Chain 1 | . . . . . 1 Shots Hit Robots 341 | . 58 20 36 129 98 Core Hits 189 | . 37 7 33 63 49 Critical Kills 3 | . . . . 1 2 Critical Parts Destroyed 10 | . . . . 8 2 Critical Strikes 32 | . 6 3 3 15 5 Burn 16 | . 6 3 2 4 1 Destroy 2 | . . . . 1 1 Blast 2 | . . . 1 1 . Smash 12 | . . . . 9 3 Melee Attacks 81 | . . . . 59 22 Impact 81 | . . . . 59 22 Slashing . | . . . . . . Piercing . | . . . . . . Sneak Attacks 18 | . . . . 13 5 Combat Hostiles . | . . . . . . Follow-up Attacks . | . . . . . . Damage Inflicted 11260 | . 1227 356 1316 5078 3283 Guns 3913 | . 745 289 415 1242 1222 Cannons 834 | . . . 352 482 . Explosions 3214 | . 482 67 549 1256 860 Melee 3295 | . . . . 2094 1201 Ramming 4 | . . . . 4 . Kinetic 1498 | . . . 352 832 314 Thermal 2494 | . 745 289 415 835 210 Explosive 3109 | . 482 67 549 1256 755 Electromagnetic 860 | . . . . 57 803 Impact 3295 | . . . . 2094 1201 Slashing . | . . . . . . Piercing . | . . . . . . Highest Corruption 6 | . . . 6 . 5 Average Corruption 3 | . . . 5 . 2 Corruption Purged 3 | . . . . . 3 Corruption Blocked 2 | . . . . . 2 Effects 46 | . . . 27 . 19 Message Errors 14 | . . . 10 . 4 Matter Fused 11 | . . . 4 . 7 Heat Flow Errors 6 | . . . 3 . 3 Energy Discharges 3 | . . . 2 . 1 Parts Rejected 2 | . . . . . 2 Parts Fused 1 | . . . 1 . . Data Loss (minor) 3 | . . . 3 . . Data Loss (major) 4 | . . . 3 . 1 Misfires 1 | . . . 1 . . Weapon Failures 1 | . . . . . 1 Overload Shots . | . . . . . . Overflow Damage 1225 | . . . 30 787 408 Projectiles 16 | . . . 12 4 . Explosions 29 | . . . 18 11 . Melee 1180 | . . . . 772 408 Knockbacks 22 | . . . 2 16 4 Impact 13 | . . . . 9 4 Kinetic 8 | . . . 2 6 . Secondary 1 | . . . . 1 . Self-Inflicted Damage 141 | . 39 . . 46 56 Shots 5 | . 1 . . 2 2 Rammed . | . . . . . . Targets Rammed 1 | . . . . 1 . Kicked 1 | . . . . 1 . Crushed . | . . . . . . Highest Temperature 651 | . 376 516 651 460 309 Average Temperature 122 | . 98 207 163 93 94 Received Heat Transfer 2226 | . 234 . 111 1224 657 Effects 31 | . 1 8 13 9 . Shutdowns 6 | . . 2 4 . . Energy Bleed 5 | . 1 1 2 1 . Interference 7 | . . 2 1 4 . Matter Decay 4 | . . 2 2 . . Short Circuit 3 | . . . 2 1 . Damage (minor) 4 | . . 1 2 1 . Damage (major) 2 | . . . . 2 . Siege Activations . | . . . . . . Robots Corrupted 3 | . . . . 1 2 Combat Hostiles 2 | . . . . 1 1 Parts Fried 37 | . . . . 22 15 Impact Corruptions 50 | . . . . 33 17 Robots Melted 1 | . 1 . . . . Combat Hostiles 1 | . 1 . . . . Parts Melted 4 | . 3 . . . 1 Heat Transferred 6505 | . 2433 925 888 1850 409 Parts Sabotaged . | . . . . . . Parts Stolen . | . . . . . . Parts Stripped . | . . . . . . Power Chain Reactions 2 | . . . . . 2 Missiles Intercepted . | . . . . . . Alert | -11 -10 -10 -9 -8 -7 ------- Run | Jun Mat Min Mat Mat Fac Peak Influence 901 | . 291 15 384 901 459 Initial 390 | . . 10 . 161 390 Average 221 | . 151 4 136 418 266 Maximum Alert Level 3 | . 1 . 1 3 2 Low Security (%) 53 | 100 64 100 67 22 38 Level 1 29 | . 35 . 32 34 42 Level 2 11 | . . . . 26 19 Level 3 4 | . . . . 16 . Level 4 . | . . . . . . Level 5 . | . . . . . . High Security . | . . . . . . Max Security . | . . . . . . Squads Dispatched 25 | . 4 . . 8 13 Investigation 8 | . 3 . . 2 3 Extermination 5 | . . . . . 5 Reinforcement 11 | . 1 . . 5 5 Assault 1 | . . . . 1 . Garrison . | . . . . . . Intercept . | . . . . . . Searches Triggered . | . . . . . . Construction Impeded 3 | . . . . 2 1 Haulers Reinforced 2 | . . . . . 2 Active Scanning Responses . | . . . . . . Cargo Convoy Interrupts 1 | . . . . . 1 Stealth | -11 -10 -10 -9 -8 -7 --------- Run | Jun Mat Min Mat Mat Fac Distress Signals 8 | . 1 . . 4 3 Communications Jammed . | . . . . . . Distress Signals . | . . . . . . Times Spotted 131 | . 22 1 27 50 31 Peak Tracking Total 9 | . 5 . 5 4 9 Tactical Retreats 10 | . 1 . . 6 3 Traps | -11 -10 -10 -9 -8 -7 ------- Run | Jun Mat Min Mat Mat Fac Traps Triggered 7 | . . . 4 1 2 Indirectly . | . . . . . . Trap Hack Attempts . | . . . . . . Triggered . | . . . . . . Disarmed . | . . . . . . Reprogrammed . | . . . . . . Reused . | . . . . . . Traps Extracted . | . . . . . . Installed . | . . . . . . Triggered 1 | . . . . . 1 Machines | -11 -10 -10 -9 -8 -7 ---------- Run | Jun Mat Min Mat Mat Fac Machines Disabled 18 | . 1 . 7 7 3 Max in Single Turn 4 | . 1 . 4 2 1 Machines Repaired . | . . . . . . Machines Sabotaged . | . . . . . . Overloaded Fab Kills . | . . . . . . Hacking | -11 -10 -10 -9 -8 -7 --------- Run | Jun Mat Min Mat Mat Fac Machines Accessed 32 | . 8 . 10 7 7 Terminals 16 | . 5 . 6 3 2 Fabricators . | . . . . . . Repair Stations 7 | . 1 . 1 2 3 Recycling Units 7 | . 2 . 2 1 2 Scanalyzers 2 | . . . 1 1 . Garrison Access . | . . . . . . Total Hacks 113 | . 28 . 30 36 19 Successful 59 | . 8 . 17 22 12 Failed 54 | . 20 . 13 14 7 Catastrophic 11 | . 2 . 4 3 2 Database Lockouts . | . . . . . . Manual 27 | . 7 . 9 8 3 Terminals 52 | . 18 . 18 12 4 Fabricators . | . . . . . . Repair Stations 30 | . 5 . 3 10 12 Recycling Units 15 | . 5 . 4 3 3 Scanalyzers 16 | . . . 5 11 . Garrison Access . | . . . . . . Terminal Hacks 20 | . 5 . 9 3 3 Emergency Access Points 1 | . . . 1 . . Repair Station Index 1 | . . . . . 1 Scanalyzer Index 1 | . . . . . 1 Alert Level 4 | . 1 . 2 1 . Unreport Threat 1 | . . . 1 . . Locate Traps 2 | . 1 . 1 . . Security Status 1 | . . . . 1 . Surveillance Status 1 | . . . 1 . . Transport Status 1 | . 1 . . . . Zone Layout 7 | . 2 . 3 1 1 Fabricator Hacks . | . . . . . . Repair Station Hacks 17 | . 1 . 1 7 8 Scan Component 11 | . 1 . 1 4 5 Repair 6 | . . . . 3 3 Recycling Unit Hacks 8 | . 2 . 3 2 1 Report Inventory 6 | . 2 . 2 1 1 Retrieve Components 2 | . . . 1 1 . Scanalyzer 14 | . . . 4 10 . Insert Component 9 | . . . 2 7 . Analyze 5 | . . . 2 3 . Garrison Access Hacks . | . . . . . . Unauthorized Hacks . | . . . . . . Terminals . | . . . . . . Fabricators . | . . . . . . Repair Stations . | . . . . . . Recycling Units . | . . . . . . Scanalyzers . | . . . . . . Garrison Access . | . . . . . . Data Cores Recovered 1 | . 1 . . . . Used 1 | . 1 . . . . Hacking Detections 24 | . 7 . 7 4 6 Full Trace Events 13 | . 4 . 4 2 3 Feedback Events . | . . . . . . Feedback Blocked . | . . . . . . Robot Schematics Acquired . | . . . . . . Robots Built . | . . . . . . Authchips . | . . . . . . Time . | . . . . . . Total Robot Build Rating . | . . . . . . Part Schematics Acquired 4 | . . . 2 2 . Parts Built . | . . . . . . Authchips . | . . . . . . Time . | . . . . . . Total Part Build Rating . | . . . . . . Parts Repaired 6 | . . . . 3 3 Time 196 | . . . . 106 90 Parts Recycled . | . . . . . . Recycled Matter . | . . . . . . Retrieved Matter . | . . . . . . Retrieved Components 14 | . . . 10 4 . Parts Scanalyzed 5 | . . . 2 3 . Part Schematics Acquired 4 | . . . 2 2 . Parts Damaged . | . . . . . . Bothacking | -11 -10 -10 -9 -8 -7 ------------ Run | Jun Mat Min Mat Mat Fac Used RIF Installer . | . . . . . . Robots Hacked . | . . . . . . Non-combat . | . . . . . . Combat . | . . . . . . Robot Hacks Applied . | . . . . . . Relay Couplers Released . | . . . . . . Fabnet Peak Effective % . | . . . . . . Robots Rewired . | . . . . . . Allies Hacked . | . . . . . . Hacks Repelled . | . . . . . . Allies | -11 -10 -10 -9 -8 -7 -------- Run | Jun Mat Min Mat Mat Fac Total Allies 1 | . . 1 . . . Largest Group 1 | . . 1 . . . Highest-Rated Group 31 | . . 31 . . . Highest-Rated Ally 31 | . . 31 . . . Total Orders . | . . . . . . Ally Attacks . | . . . . . . Total Damage . | . . . . . . Kills . | . . . . . . Allies Corrupted . | . . . . . . Allies Melted . | . . . . . . Intel | -11 -10 -10 -9 -8 -7 ------- Run | Jun Mat Min Mat Mat Fac Robot Analysis Total . | . . . . . . Derelict Logs Recovered 1 | . . 1 . . . Drone Launches . | . . . . . . Drone Recoveries . | . . . . . . Exploration | -11 -10 -10 -9 -8 -7 ------------- Run | Jun Mat Min Mat Mat Fac Turns Passed 8765 | 51 1220 1437 1797 2415 1845 Spaces Moved 4845 | 35 586 715 1134 1091 1284 Core 206 | 3 . . . . 203 Treads 156 | . . . . . 156 Legs 3928 | 32 586 715 1134 1091 370 Wheels 555 | . . . . . 555 Hover . | . . . . . . Flight . | . . . . . . Fastest Speed 50 | 50 120 190 120 125 50 Average Speed 140 | 116 154 190 131 152 105 Slowest Speed 270 | 120 190 190 200 270 240 Overloaded Moves . | . . . . . . Propulsion Burnouts . | . . . . . . Robots Hopped . | . . . . . . Cave-ins Triggered . | . . . . . . Exploration Rate (%) 57 | 3 78 98 77 62 28 Regions Visited 5 Branch Regions 1 Pre-discovered Areas . | . . . . . . Known Exits Taken 1 | . . . . 1 . Unknown Exits Taken 4 | 1 1 1 1 . . Scrap Searched 1 | . . 1 . . . Spaces Dug . | . . . . . . Terrain Destroyed 329 | . 39 11 81 148 50 Melee . | . . . . . . Projectile 6 | . . . 2 4 . AOE 323 | . 39 11 79 144 50 Terrain Rammed . | . . . . . . Walls Destroyed . | . . . . . . Machines Disabled . | . . . . . . Actions | -11 -10 -10 -9 -8 -7 --------- Run | Jun Mat Min Mat Mat Fac Total 6131 | 42 797 760 1355 1572 1605 Wait 595 | . 101 8 119 222 145 Move 4840 | 34 585 714 1133 1090 1284 Hop . | . . . . . . Pick Up 62 | 2 11 6 9 20 14 Fast Attach 46 | 6 5 . 3 7 25 Attach 21 | . . . 3 9 9 Detach 3 | . . . . 1 2 Swap 88 | . 10 3 22 37 16 Drop 76 | . 12 7 14 20 23 Fire 318 | . 73 22 52 106 65 Melee 81 | . . . . 59 22 Ram . | . . . . . . Kick 1 | . . . . 1 . Crush . | . . . . . . Escape Stasis . | . . . . . . Rewire . | . . . . . . Trap . | . . . . . . Miscellaneous . | . . . . . . Route ------- -11/Junkyard -10/Materials (discovered 3 exits: *Mat x2 / [*Min]) -10/Mines (discovered 2 exits: *Mat x2) -9/Materials (discovered 4 exits: *Mat x3 / [*Min]) -8/Materials -7/Factory (discovered 2 exits: Sto / [*Low]) History --------- Turn | Location | Event 7 | -11/Junkyard | Discovered new exit (range 15) 52 | -11/Junkyard | Entered Materials 226 | -10/Materials | Discovered new exit (range 17) 303 | -10/Materials | Discovered new exit (range 11) 304 | -10/Materials | Build established: Mutant 521 | -10/Materials | Core integrity fell below 50% 714 | -10/Materials | Build established: Scavenger-Mutant 801 | -10/Materials | Discovered new exit (range 4) 1272 | -10/Materials | Entered Mines 1424 | -10/Mines | Received a Rocket Launcher from a helpful Derelict 1454 | -10/Mines | Assembled infested the area 1496 | -10/Mines | Met 8R-AWN 1527 | -10/Mines | Discovered new exit (range 7) 1632 | -10/Mines | Received a Mining Laser from a helpful Derelict 2075 | -10/Mines | Discovered new exit (range 9) 2226 | -10/Mines | Joined a pair of Derelicts in attacking an 0b10 outpost 2709 | -10/Mines | Entered Materials 2709 | -9/Materials | Evolved 2 slots: Utility x2 3082 | -9/Materials | Discovered new exit (range 9) 3120 | -9/Materials | Discovered new exit (range 16) 3592 | -9/Materials | Discovered new exit (range 14) 4442 | -9/Materials | Discovered new exit (range 12) 4506 | -9/Materials | Entered another Materials area 4506 | -8/Materials | Evolved 2 slots: Utility x2 4805 | -8/Materials | Repaired Broken Sensor Array 4839 | -8/Materials | Repaired Imp. Light Cannon 5225 | -8/Materials | Lost 3 parts (2u1w) 5815 | -8/Materials | Core integrity fell below 50% 5970 | -8/Materials | Discovered new exit (range 11) 6023 | -8/Materials | Destroyed 7 combat bots 6033 | -8/Materials | Lost 3 parts (1p1n1u) 6035 | -8/Materials | Identified exit to Factory 6289 | -8/Materials | Repaired Titanium Leg 6774 | -8/Materials | Core integrity fell below 20% 6906 | -8/Materials | First assault squad dispatched 6921 | -8/Materials | Entered Factory 6921 | -7/Factory | Evolved 2 slots: Propulsion x1, Utility x1 6922 | -7/Factory | Identified exit to Storage 6996 | -7/Factory | Repaired Sensor Array 7548 | -7/Factory | Lost 3 parts (2n1w) 7579 | -7/Factory | Repaired Sensor Array 7618 | -7/Factory | Repaired Adv. Weight Redist. System 7780 | -7/Factory | Cargo convoy interrupted 7877 | -7/Factory | Build established: Scavenger-Assassin 8206 | -7/Factory | Build established: Scavenger-Skirmisher 8593 | -7/Factory | Build established: Scavenger-Mutant 8614 | -7/Factory | Released all parts (8) 8644 | -7/Factory | Lost 5 parts (1p3n1u) 8718 | -7/Factory | Core integrity fell below 50% 8725 | -7/Factory | Released all parts (3) 8738 | -7/Factory | Discovered new exit (range 16) 8754 | -7/Factory | Lost 6 parts (2n1u3w) 8757 | -7/Factory | Core integrity fell below 20% 8766 | -7/Factory | Destroyed by exploding Fusion Modulator Last Messages --------------- 08722_ R-06 Scavenger collects Imp. Heat Sink. 08723_ Shock Rifle destroyed. 08724_ K-01 Serf collects debris. 08725_ Released Imp. Heat Sink. 08725_ Released Carbon-fiber Leg. 08725_ Released Mic. Nuclear Core. 08725_ R-06 Scavenger collects Lgt. Nuclear Core. 08726_ Acquired Assault Rifle. 08726_ G-47 Trooper destroyed. 08726_ K-01 Serf collects debris. 08729_ System corrupted: Matter fused (-5). 08729_ R-06 Scavenger collects Carbon-fiber Leg. 08738_ EXIT=FOUND 08761_ M-28 Smith repairs X-57 Shotgunner. 08766_ Fusion Modulator explodes. 08766_ G-47 Trooper destroyed. 08766_ Fusion Modulator explodes. 08766_ M-28 Smith destroyed. 08766_ Y-54 Guardian destroyed. 08766_ X-57 Shotgunner destroyed. Map ----- +----------------------------------------------------+ | ?????????????????????????????????????????????????? | | ?????????????????????????????????????????????????? | | ?????????????????????????????????????????????????? | | ?????????????????????????????????????????????????? | | ?????????????????????????????????????????????????? | | ?????????????????????????????##??????????????????? | | ???????????????????????####### ###########???????? | | ???????????????????????# !!! #???????? | | ???????????????????????# ! !![ ! #????#### | | ???????????????????????# !![ #????# | | ???????????????????????# #????# " | | ???????????????????????? """ """ ?????# | | ???????????????????????# """ / ] """ #????# " | | ???????????????????????# """ """ #????# | | ????????????????????????########+##########???# " | | ?????????????????? ########## #???#[ | | ????????????????? ##### " | | ?????????????????< ! % + | | ????????????????? H ##### " | | ?????????????????? ########## #???# | | ???????????????????????##########/### % #???# | | ???????????????????????# g Y # ######## | | ???????????????????????# %! # | | ???????????????????????# [% ; | | ???????????????????????# = * ;""" | | ???????????????????????# @ ;"Y%% | | #?????????????????# "" | | +?????????????????# * ; % | | #???????????????????# ; % | | #???????????????????# % ; % | | #???????????????????# ; % % | | ##+#???????????????????# =; % % | | ???????????????????????# # | | ???????????????????????############## % %% | | ????????????????????????????????????# #"" ""## | | ?????????????????????????????######## #""G""#? | | ?????????????????????????????# % #######? | | ?????????????????????????????# #??????? | | ?????????????????????????????# #??????? | | ?????????????????????????????# #??????? | | ?????????##############??????# #??????? | | ?????????# #??????# ###+##########? | | ?????????# ######## # / ! # | | ?????????# # # # | | ?????????# """" # # """ """ """ # | | ?????????# """" # # """ """ """ # | | ?????????# """" + # """ """ """ ? | | ?????????# """" # # ?? | | ?????????# """ """" # ###+################?? | | ?????????# "R """" # # #??????????? | +----------------------------------------------------+ Best States ------------- Heat Dissipation 65 Energy Generation 18 Energy Capacity 310 Matter Stores 300 Matter Capacity 300 Sight Range 20 Robot Scan Range 14 Terrain Scan Density 10 ECM Strength 1 Additional Mass Support 9 Armor Coverage 300 Resistance: KI 20 Weapon Shielding 33 Evasion (%) 55 Targeting Accuracy 5 Recoil Reduction 2 Salvage Targeting 1 Item Schematics ----------------- Imp. EM Shotgun | -9/Materials | Scanalyzed Titanium Leg | -9/Materials | Scanalyzed Imp. Light Cannon | -8/Materials | Scanalyzed Beamcaster | -8/Materials | Scanalyzed Robot Schematics ------------------ None Fabricated ------------ Nothing Alien Tech Used ----------------- None Achievements -------------- Dynamic Key Please Form A Line Challenges ------------ None Game ------ Seed SwarmDamperChronowheel Manual? 0 Play Time 03:04:02 Cumulative 17.9 hours Start 2024.01.24 @ 14:40:35 End 2024.01.25 @ 01:25:03 Sessions 7 Manual Loads 0 Difficulty Rogue Special Mode None Game No. 6 Rogue 6 Adventurer 0 Explorer 0 Win Type - Total 0 Types 0/0/0/0/0/0/0/0/0 Lore% 12 Gallery% 15 Achievement% 14 Wizard Run 0 Options --------- ASCII 0 Keyboard 1 Movement Vi Keybinds 0 Fullscreen 1 Font 18/Terminus Map View 76x50 Tactical HUD 1 Map Filters NONE Filters NONE Steam 1 RUN: bec6f3da-a3b2-4358-9055-1c1c0e9c2620